bitfinex/quotes_SOLUSD_20250318
["timestamp","ask_amount","ask_price","bid_price","bid_amount"]
[1742306599668,62.69198727,122.49,122.47,0.42648471]
[1742306599869,62.69198727,122.49,122.47,19.07613357]
[1742306600082,81.8,122.53,122.47,25.28373357]
[1742306600322,62.69198727,122.52,122.47,25.28373357]
[1742306600584,62.69198727,122.48,122.47,6.63408471]
[1742306600973,62.69198727,122.48,122.47,6.2076]
[1742306601288,62.69198727,122.48,122.46,10.51]
[1742306601489,70.85398727,122.52,122.46,10.51]
[1742306601490,62.69198727,122.47,122.46,2.25]
[1742306601669,125.38397454,122.47,122.46,2.25]
[1742306602067,125.38397454,122.47,122.4,6.4012]
[1742306602288,125.38397454,122.47,122.39,1.5743]
[1742306602289,62.69198727,122.41,122.39,1.5743]
[1742306602493,62.69198727,122.4,122.39,1.5743]
[1742306602674,62.69198727,122.4,122.37,6.29166157]
[1742306602874,62.69198727,122.39,122.37,6.29166157]
[1742306603177,62.69198727,122.4,122.38,0.28432314]
[1742306603383,62.69198727,122.39,122.38,0.28432314]
[1742306603693,62.69198727,122.39,122.37,6.29166157]
[1742306603874,62.69198727,122.39,122.37,6.1495]
[1742306604280,62.69198727,122.38,122.35,1.69556157]
[1742306604676,62.69198727,122.37,122.35,1.69556157]
[1742306605192,62.69198727,122.38,122.35,1.69556157]
[1742306605597,62.69198727,122.37,122.36,0.28432314]
[1742306605897,62.69198727,122.37,122.36,0.14216157]
[1742306606288,62.69198727,122.38,122.36,0.28432314]
[1742306606699,62.69198727,122.37,122.36,0.28432314]
[1742306606905,144.49198727,122.4,122.36,0.28432314]
[1742306607081,62.69198727,122.38,122.36,0.28432314]
[1742306607399,62.69198727,122.37,122.36,0.28432314]
[1742306607824,62.69198727,122.38,122.36,0.28432314]
[1742306608196,62.69198727,122.37,122.34,6.3307]
[1742306608502,62.69198727,122.35,122.32,18.79181043]
[1742306608715,62.69198727,122.33,122.31,0.14216157]
[1742306609010,62.69198727,122.34,122.31,0.14216157]
[1742306609185,41.80557149,122.34,122.31,0.14216157]
[1742306609374,41.80557149,122.34,122.31,19.07613357]
[1742306609574,81.8,122.36,122.31,19.07613357]
[1742306609783,41.80557149,122.35,122.31,19.07613357]
[1742306610078,123.60557149,122.37,122.34,0.28432314]
[1742306611075,41.80557149,122.36,122.32,8.40216157]
[1742306611275,123.60557149,122.37,122.33,18.933972]
[1742306611512,81.8,122.37,122.34,0.14216157]
[1742306612211,81.8,122.37,122.36,0.28432314]
[1742306612417,41.80557149,122.4,122.36,8.68648471]
[1742306612615,41.80557149,122.39,122.36,8.68648471]
[1742306612923,41.80557149,122.38,122.36,8.54432314]
[1742306613091,81.8,122.42,122.36,8.54432314]
[1742306613291,41.80557149,122.38,122.36,8.54432314]
[1742306613490,41.80557149,122.39,122.36,8.54432314]
[1742306614108,41.80557149,122.38,122.36,0.28432314]
[1742306614421,41.80557149,122.38,122.34,9.7815]
[1742306614600,41.80557149,122.37,122.35,0.28432314]
[1742306614793,41.80557149,122.36,122.35,0.28432314]
[1742306615008,41.80557149,122.37,122.35,0.28432314]
[1742306615418,41.80557149,122.36,122.34,0.03]
[1742306616028,41.80557149,122.35,122.34,0.03]
[1742306621302,83.61114298,122.35,122.34,0.03]
[1742306621918,91.78434298,122.35,122.31,0.2]
[1742306622129,41.80557149,122.32,122.31,0.2]
[1742306623614,8.26,122.33,122.31,0.2]
[1742306623800,41.80557149,122.32,122.31,0.2]
[1742306625122,41.80557149,122.34,122.31,0.2]
[1742306625417,41.80557149,122.32,122.31,0.2]
[1742306625801,41.80557149,122.33,122.31,0.2]
[1742306626423,20.0,122.36,122.31,0.2]
[1742306626598,20.0,122.36,122.31,18.87964886]
[1742306626599,41.80557149,122.34,122.31,18.87964886]
[1742306626917,81.8,122.36,122.33,7.76476157]
[1742306627229,41.86857149,122.38,122.35,0.14216157]
[1742306627523,0.063,122.38,122.36,0.14216157]
[1742306628221,0.063,122.38,122.37,0.14216157]
[1742306629406,0.063,122.38,122.36,8.40216157]
[1742306629607,0.063,122.38,122.36,0.14216157]
[1742306630811,0.063,122.38,122.36,0.28432314]
[1742306631129,0.063,122.38,122.37,0.14216157]
[1742306631337,0.063,122.38,122.37,18.933972]
[1742306631634,0.063,122.38,122.37,27.33613357]
[1742306632106,0.063,122.38,122.37,8.54432314]
[1742306632608,41.86857149,122.38,122.35,18.933972]
[1742306632814,41.86857149,122.38,122.36,0.28432314]
[1742306633326,0.063,122.38,122.36,0.28432314]
[1742306636326,41.80557149,122.37,122.35,0.28432314]
[1742306636628,41.80557149,122.36,122.33,7.6226]
[1742306636831,41.80557149,122.35,122.33,7.6226]
[1742306637129,81.8,122.36,122.33,7.6226]
[1742306637305,123.60557149,122.36,122.33,7.6226]
[1742306637505,81.8,122.36,122.34,0.28432314]
[1742306637906,123.60557149,122.36,122.34,0.28432314]
[1742306638101,41.80557149,122.35,122.34,0.28432314]
[1742306638519,123.60557149,122.36,122.34,0.28432314]
[1742306638721,0.063,122.38,122.34,19.07613357]
[1742306638919,41.80557149,122.37,122.34,19.07613357]
[1742306639536,41.86857149,122.38,122.34,27.33613357]
[1742306639737,0.063,122.38,122.34,69.14170506]
[1742306640831,0.063,122.38,122.36,0.28432314]
[1742306641334,0.063,122.38,122.36,0.42648471]
[1742306641510,0.063,122.38,122.37,18.933972]
[1742306641715,0.063,122.38,122.37,19.07613357]
[1742306642029,0.063,122.38,122.37,0.28432314]
[1742306642531,41.86857149,122.38,122.34,8.40216157]
[1742306642738,41.86857149,122.38,122.36,0.28432314]
[1742306642943,0.063,122.38,122.36,0.28432314]
[1742306643317,41.86857149,122.38,122.36,0.28432314]
[1742306644535,0.063,122.38,122.36,0.28432314]
[1742306645432,41.86857149,122.38,122.35,0.28432314]
[1742306645626,0.063,122.38,122.35,0.28432314]
[1742306646423,41.86857149,122.38,122.35,18.933972]
[1742306646821,0.063,122.38,122.35,0.28432314]
[1742306647739,0.063,122.38,122.35,60.73954349]
[1742306648249,0.063,122.38,122.35,18.933972]
[1742306648624,0.063,122.38,122.35,60.73954349]
[1742306648825,0.063,122.38,122.37,18.933972]
[1742306649338,0.063,122.38,122.37,0.28432314]
[1742306649540,0.063,122.38,122.37,60.88170506]
[1742306649841,41.80557149,122.45,122.39,0.28432314]
[1742306650045,41.80557149,122.45,122.42,0.28432314]
[1742306650742,41.80557149,122.44,122.42,0.28432314]
[1742306651124,41.80557149,122.43,122.42,0.28432314]
[1742306651647,41.80557149,122.43,122.4,8.26]
[1742306651852,41.80557149,122.43,122.41,0.28432314]
[1742306652927,41.80557149,122.42,122.38,18.79181043]
[1742306653152,41.80557149,122.4,122.38,8.26]
[1742306653328,81.8,122.45,122.39,18.79181043]
[1742306653645,41.80557149,122.43,122.4,0.28432314]
[1742306654052,41.80557149,122.41,122.38,8.26]
[1742306654256,41.80557149,122.4,122.39,0.28432314]
[1742306654460,81.8,122.44,122.39,0.28432314]
[1742306654628,41.80557149,122.42,122.39,0.28432314]
[1742306655335,81.8,122.44,122.39,42.08989463]
[1742306655529,41.80557149,122.45,122.42,0.28432314]
[1742306655734,0.063,122.46,122.43,60.59738192]
[1742306656039,0.063,122.46,122.44,0.28432314]
[1742306656235,0.063,122.46,122.45,0.14216157]
[1742306656445,0.063,122.46,122.45,42.2320562]
[1742306656638,0.063,122.46,122.45,0.42648471]
[1742306657944,41.86857149,122.46,122.45,0.42648471]
[1742306658456,41.86857149,122.46,122.41,27.33613357]
[1742306658654,41.80557149,122.44,122.41,27.05181043]
[1742306658949,41.80557149,122.44,122.42,18.933972]
[1742306659149,41.80557149,122.43,122.42,0.28432314]
[1742306659353,41.80557149,122.43,122.39,0.14216157]
[1742306659535,41.80557149,122.4,122.39,0.14216157]
[1742306659732,41.80557149,122.4,122.37,7.7818]
[1742306659733,41.80557149,122.4,122.38,0.14216157]
[1742306659932,41.80557149,122.4,122.38,19.07613357]
[1742306660347,41.80557149,122.4,122.38,18.79181043]
[1742306660550,41.80557149,122.4,122.39,0.28432314]
[1742306661351,41.80557149,122.4,122.38,18.79181043]
[1742306661739,41.80557149,122.4,122.39,0.28432314]
[1742306662255,41.80557149,122.4,122.37,7.7818]
[1742306662553,41.80557149,122.4,122.38,19.07613357]
[1742306662851,41.80557149,122.41,122.38,19.07613357]
[1742306664245,41.80557149,122.4,122.38,19.07613357]
[1742306665547,81.8,122.43,122.38,19.07613357]
[1742306665747,41.80557149,122.41,122.38,19.07613357]
[1742306666053,41.80557149,122.42,122.38,19.07613357]
[1742306666261,123.60557149,122.43,122.38,60.88170506]
[1742306666441,81.863,122.46,122.4,60.88170506]
[1742306666645,41.80557149,122.45,122.4,60.88170506]
[1742306667351,41.80557149,122.44,122.4,19.07613357]
[1742306667750,41.80557149,122.45,122.4,60.88170506]
[1742306668142,0.063,122.46,122.43,0.28432314]
[1742306668462,0.063,122.46,122.43,27.33613357]
[1742306669060,0.063,122.46,122.43,69.14170506]
[1742306669244,0.063,122.46,122.45,18.64964886]
[1742306669847,0.063,122.46,122.45,60.88170506]
[1742306670968,0.063,122.46,122.45,19.07613357]
[1742306671261,0.063,122.46,122.45,60.88170506]
[1742306672177,0.063,122.47,122.46,0.42648471]
[1742306672384,0.063,122.5,122.47,18.64964886]
[1742306672548,0.063,122.5,122.49,60.88170506]
[1742306673346,0.063,122.5,122.49,68.49020506]
[1742306674784,0.063,122.5,122.49,19.07613357]
[1742306675164,0.063,122.5,122.49,60.88170506]
[1742306675747,0.063,122.5,122.49,19.07613357]
[1742306676349,0.063,122.5,122.49,60.88170506]
[1742306676564,0.063,122.5,122.49,19.07613357]
[1742306676949,0.063,122.5,122.49,60.88170506]
[1742306679472,0.063,122.55,122.52,0.42648471]
[1742306679656,0.063,122.55,122.54,19.07613357]
[1742306680365,0.063,122.55,122.54,60.88170506]
[1742306680949,0.063,122.55,122.54,19.07613357]
[1742306681549,0.063,122.55,122.54,60.88170506]
[1742306683365,0.063,122.55,122.54,63.76765971]
[1742306683559,0.063,122.55,122.54,64.26765971]
[1742306683758,0.063,122.59,122.58,25.11533357]
[1742306683952,0.063,122.59,122.58,33.35533357]
[1742306684974,0.063,122.59,122.58,27.31613357]
[1742306685271,0.063,122.59,122.58,27.173972]
[1742306685574,0.063,122.59,122.58,69.12170506]
[1742306686847,0.063,122.62,122.59,0.28432314]
[1742306687157,0.063,122.62,122.61,80.88170506]
[1742306687364,0.063,122.62,122.61,19.07613357]
[1742306688080,0.063,122.62,122.61,60.88170506]
[1742306688575,0.063,122.62,122.61,68.95450506]
[1742306695753,0.063,122.62,122.61,25.417172]
[1742306696171,0.063,122.62,122.61,18.79181043]
[1742306696366,0.063,122.62,122.61,19.07613357]
[1742306697074,0.063,122.62,122.61,68.97954349]
[1742306697261,0.063,122.62,122.61,69.12170506]
[1742306698083,0.063,122.62,122.61,27.173972]
[1742306698384,0.063,122.62,122.61,69.12170506]
[1742306700281,0.063,122.63,122.62,19.07613357]
[1742306700482,7.7108,122.73,122.68,0.14216157]
[1742306700672,43.31717149,122.73,122.7,19.07613357]
[1742306700872,41.80557149,122.71,122.7,19.07613357]
[1742306701077,41.80557149,122.71,122.68,0.28432314]
[1742306701276,41.80557149,122.69,122.66,0.42648471]
[1742306701681,41.80557149,122.7,122.66,0.42648471]
[1742306701874,83.3116,122.73,122.66,0.42648471]
[1742306701875,41.80557149,122.69,122.66,0.42648471]
[1742306702194,41.80557149,122.7,122.66,0.42648471]
[1742306702777,41.80557149,122.68,122.66,0.28432314]
[1742306702975,41.80557149,122.69,122.66,0.42648471]
[1742306703179,20.0,122.71,122.67,19.07613357]
[1742306703480,41.80557149,122.68,122.66,8.24]
[1742306703985,81.8,122.72,122.67,19.07613357]
[1742306704366,41.80557149,122.68,122.66,8.24]
[1742306704583,81.8,122.72,122.66,8.24]
[1742306704902,41.80557149,122.68,122.66,8.24]
[1742306705066,25.9887733,122.67,122.66,8.24]
[1742306705464,25.9887733,122.67,122.64,0.14216157]
[1742306705773,25.9887733,122.65,122.64,0.14216157]
[1742306705977,25.9887733,122.65,122.63,0.14216157]
[1742306706180,25.9887733,122.64,122.62,8.36216157]
[1742306706374,89.9512,122.68,122.62,8.36216157]
[1742306706375,45.9887733,122.65,122.62,8.36216157]
[1742306706592,25.9887733,122.66,122.62,8.36216157]
[1742306706894,25.9887733,122.64,122.62,8.36216157]
[1742306707095,25.9887733,122.64,122.62,0.14216157]
[1742306707282,25.9887733,122.63,122.58,18.82181043]
[1742306707597,25.9887733,122.61,122.59,0.28432314]
[1742306707769,25.9887733,122.62,122.59,0.28432314]
[1742306708775,25.9887733,122.62,122.58,27.04181043]
[1742306708975,25.9887733,122.62,122.59,0.28432314]
[1742306709295,25.9887733,122.63,122.59,0.28432314]
[1742306709479,25.9887733,122.62,122.59,0.28432314]
[1742306709680,25.9887733,122.61,122.59,0.28432314]
[1742306710195,25.9887733,122.62,122.59,0.31432314]
[1742306711089,25.9887733,122.64,122.6,18.79181043]
[1742306711590,25.9887733,122.63,122.6,18.79181043]
[1742306711891,25.9887733,122.61,122.6,0.14216157]
[1742306712389,25.9887733,122.61,122.59,0.03]
[1742306712691,25.9887733,122.6,122.59,0.03]
[1742306716504,60.1341466,122.6,122.58,0.03]
[1742306716674,51.9775466,122.59,122.52,18.79181043]
[1742306716879,25.9887733,122.53,122.5,0.17216157]
[1742306717086,20.0,122.54,122.5,8.39216157]
[1742306717295,25.9887733,122.53,122.51,0.28432314]
[1742306717702,25.9887733,122.53,122.5,0.03]
[1742306717906,25.9887733,122.51,122.5,0.03]
[1742306718903,9.9062,122.55,122.5,0.03]
[1742306718904,1.6662,122.55,122.5,0.03]
[1742306719285,41.6735964,122.53,122.51,19.07613357]
[1742306719806,41.6735964,122.54,122.51,19.07613357]
[1742306720012,41.6735964,122.53,122.51,19.07613357]
[1742306720183,41.6735964,122.53,122.5,18.963972]
[1742306720606,41.6735964,122.51,122.5,0.03]
[1742306721813,61.6735964,122.51,122.5,0.03]
[1742306722307,41.6735964,122.51,122.5,0.03]
[1742306723798,123.4735964,122.51,122.5,0.03]
[1742306727105,81.8,122.51,122.5,19.10613357]
[1742306727302,41.6735964,122.58,122.5,60.77972997]
[1742306727303,81.8,122.56,122.5,60.77972997]
[1742306727503,41.6735964,122.54,122.51,0.28432314]
[1742306727700,41.6735964,122.54,122.5,18.82181043]
[1742306727701,41.6735964,122.52,122.5,0.03]
[1742306727931,81.8,122.56,122.5,0.03]
[1742306728081,81.8,122.56,122.5,19.10613357]
[1742306728082,41.6735964,122.54,122.5,19.10613357]
[1742306728406,41.6735964,122.53,122.5,19.10613357]
[1742306729096,41.6735964,122.52,122.5,19.10613357]
[1742306729405,41.6735964,122.51,122.5,0.03]
[1742306729613,41.6735964,122.52,122.5,0.03]
[1742306730015,81.8,122.54,122.5,19.10613357]
[1742306730211,41.6735964,122.53,122.5,19.10613357]
[1742306730909,41.6735964,122.52,122.5,19.10613357]
[1742306731205,81.8,122.57,122.52,19.07613357]
[1742306731407,41.6735964,122.55,122.53,8.24]
[1742306731581,41.6735964,122.54,122.53,8.24]
[1742306731780,41.6735964,122.55,122.53,8.24]
[1742306731986,41.6735964,122.54,122.53,8.24]
[1742306733105,41.6735964,122.54,122.5,0.03]
[1742306733310,41.6735964,122.51,122.5,0.03]
[1742306733887,81.8,122.55,122.5,8.27]
[1742306734088,20.0,122.54,122.51,19.07613357]
[1742306734293,41.6735964,122.55,122.51,19.07613357]
[1742306734507,41.6735964,122.54,122.51,19.07613357]
[1742306735105,81.8,122.57,122.51,19.07613357]
[1742306735309,41.6735964,122.54,122.51,18.57613357]
[1742306736005,81.8,122.56,122.51,18.57613357]
[1742306736190,41.6735964,122.55,122.51,18.57613357]
[1742306736385,123.4735964,122.56,122.51,60.24972997]
[1742306736605,81.8,122.56,122.53,0.14216157]
[1742306736809,123.4735964,122.56,122.53,0.14216157]
[1742306737312,81.8,122.56,122.53,0.14216157]
[1742306737498,81.8,122.56,122.54,8.24]
[1742306737696,41.6735964,122.58,122.54,8.24]
[1742306737898,41.6735964,122.57,122.54,8.24]
[1742306738098,41.6735964,122.58,122.54,8.24]
[1742306738296,41.6735964,122.57,122.54,8.24]
[1742306739199,41.6735964,122.58,122.54,8.24]
[1742306739398,0.063,122.59,122.55,19.07613357]
[1742306739601,41.6735964,122.58,122.55,19.07613357]
[1742306739912,41.6735964,122.56,122.54,8.24]
[1742306740717,41.6735964,122.57,122.54,8.24]
[1742306741012,41.6735964,122.58,122.55,19.07613357]
[1742306741415,0.063,122.59,122.55,19.07613357]
[1742306741605,0.063,122.59,122.57,19.07613357]
[1742306741993,0.063,122.59,122.58,27.31613357]
[1742306742212,0.063,122.59,122.58,75.03762997]
[1742306742392,0.063,122.59,122.58,76.60082997]
[1742306746014,0.063,122.59,122.58,27.01181043]
[1742306746401,0.063,122.59,122.58,19.07613357]
[1742306746601,0.063,122.59,122.57,8.36216157]
[1742306747016,0.063,122.59,122.58,0.28432314]
[1742306747814,0.063,122.59,122.57,8.36216157]
[1742306748720,41.7365964,122.59,122.57,8.36216157]
[1742306748898,41.7365964,122.59,122.57,8.22]
[1742306749098,41.6735964,122.58,122.55,0.14216157]
[1742306749317,41.6735964,122.58,122.55,0.28432314]
[1742306749525,41.6735964,122.58,122.55,0.42648471]
[1742306749817,41.6735964,122.57,122.55,0.42648471]
[1742306750002,41.6735964,122.58,122.55,0.42648471]
[1742306750202,20.063,122.59,122.55,0.42648471]
[1742306750468,41.6735964,122.58,122.55,0.28432314]
[1742306750617,20.063,122.59,122.55,0.28432314]
[1742306750928,0.063,122.59,122.55,42.10008111]
[1742306751137,0.063,122.59,122.56,18.64964886]
[1742306751324,0.063,122.59,122.57,0.42648471]
[1742306751625,0.063,122.59,122.58,8.22]
[1742306751827,0.063,122.59,122.58,8.64648471]
[1742306752004,0.063,122.59,122.58,27.29613357]
[1742306753011,0.063,122.59,122.58,68.96972997]
[1742306753219,0.063,122.59,122.58,27.29613357]
[1742306755042,0.063,122.59,122.58,27.153972]
[1742306755238,0.063,122.59,122.58,27.29613357]
[1742306755539,0.063,122.59,122.58,8.22]
[1742306755721,0.063,122.59,122.58,27.29613357]
[1742306755936,0.063,122.59,122.58,118.77972637]
[1742306756855,0.063,122.59,122.58,256.87972637]
[1742306757011,41.6735964,122.67,122.63,19.07613357]
[1742306757435,41.6735964,122.66,122.63,19.07613357]
[1742306757739,41.6735964,122.65,122.62,8.22]
[1742306757976,41.6735964,122.64,122.62,8.22]
[1742306758325,41.6735964,122.63,122.59,27.29613357]
[1742306758535,41.6735964,122.64,122.59,68.96972997]
[1742306758846,41.6735964,122.63,122.59,27.29613357]
[1742306759050,41.6735964,122.63,122.59,27.153972]
[1742306759219,41.6735964,122.64,122.59,8.22]
[1742306759556,41.6735964,122.61,122.59,8.22]
[1742306759848,41.6735964,122.6,122.59,8.22]
[1742306760048,41.6735964,122.62,122.59,8.22]
[1742306760538,41.6735964,122.6,122.59,8.22]
[1742306760739,81.8,122.62,122.59,8.22]
[1742306760943,41.6735964,122.6,122.59,8.22]
[1742306761246,81.8,122.62,122.58,0.42648471]
[1742306761423,123.4735964,122.62,122.58,0.42648471]
[1742306761830,41.6735964,122.6,122.57,27.01181043]
[1742306762437,41.6735964,122.61,122.57,27.01181043]
[1742306763161,61.6735964,122.63,122.6,19.07613357]
[1742306763467,61.6735964,122.63,122.58,19.07613357]
[1742306763650,61.6735964,122.63,122.6,0.42648471]
[1742306763855,41.6735964,122.64,122.6,0.42648471]
[1742306764058,41.6735964,122.62,122.59,18.64964886]
[1742306764367,41.6735964,122.63,122.6,0.42648471]
[1742306764545,81.8,122.65,122.62,0.42648471]
[1742306765152,41.6735964,122.66,122.62,0.42648471]
[1742306765342,41.6735964,122.68,122.64,0.42648471]
[1742306765851,81.8,122.69,122.62,18.79181043]
[1742306765852,41.6735964,122.66,122.62,18.79181043]
[1742306766039,41.6735964,122.66,122.63,0.28432314]
[1742306766346,41.6735964,122.65,122.62,18.79181043]
[1742306766547,41.6735964,122.64,122.62,18.79181043]
[1742306766764,41.6735964,122.65,122.62,18.79181043]
[1742306767540,41.6735964,122.64,122.62,18.79181043]
[1742306768259,41.6735964,122.65,122.62,18.79181043]
[1742306768436,41.6735964,122.64,122.61,14.90052314]
[1742306768953,41.6735964,122.63,122.58,1.68126157]
[1742306769160,41.6735964,122.6,122.58,0.14216157]
[1742306769360,41.6735964,122.6,122.58,18.79181043]
[1742306769546,41.6735964,122.64,122.55,1.5391]
[1742306769547,123.4735964,122.59,122.55,1.5391]
[1742306769857,41.6735964,122.58,122.55,19.07613357]
[1742306770048,20.0,122.6,122.58,0.03]
[1742306770231,61.6735964,122.6,122.58,0.03]
[1742306771041,20.0,122.6,122.58,0.03]
[1742306771239,20.0,122.6,122.58,19.10613357]
[1742306771460,61.6735964,122.6,122.58,19.10613357]
[1742306772545,81.8,122.65,122.59,43.2338964]
[1742306772744,41.6735964,122.65,122.61,19.07613357]
[1742306772940,41.6735964,122.65,122.62,8.22]
[1742306773141,41.6735964,122.64,122.62,8.22]
[1742306773459,41.6735964,122.63,122.58,19.10613357]
[1742306773766,41.6735964,122.6,122.58,18.82181043]
[1742306773952,41.6735964,122.6,122.58,0.03]
[1742306774269,41.6735964,122.59,122.58,0.03]
[1742306776162,20.0,122.56,122.53,0.03]
[1742306776341,41.6735964,122.54,122.53,0.03]
[1742306779970,81.8,122.55,122.53,0.03]
[1742306780165,123.4735964,122.55,122.53,0.03]
[1742306780867,41.6735964,122.57,122.53,0.31432314]
[1742306781248,41.6735964,122.55,122.53,0.03]
[1742306781462,41.6735964,122.59,122.54,18.79181043]
[1742306781662,41.6735964,122.59,122.54,60.46540683]
[1742306781865,41.6735964,122.59,122.56,19.07613357]
[1742306782258,81.8,122.6,122.56,19.07613357]
[1742306782259,41.6735964,122.6,122.56,19.07613357]
[1742306782465,81.8,122.62,122.58,19.07613357]
[1742306782768,41.6735964,122.61,122.58,19.07613357]
[1742306782963,41.6735964,122.61,122.58,0.28432314]
[1742306783167,0.063,122.58,122.56,18.79181043]
[1742306783670,41.7365964,122.58,122.56,18.79181043]
[1742306783872,0.063,122.58,122.56,18.79181043]
[1742306784169,0.063,122.58,122.55,14.86472314]
[1742306784170,41.6735964,122.57,122.55,14.86472314]
[1742306784572,41.6735964,122.56,122.55,8.22]
[1742306784871,20.063,122.58,122.54,0.14216157]
[1742306785071,20.063,122.58,122.54,41.81575797]
[1742306785375,0.063,122.58,122.54,41.81575797]
[1742306786655,0.063,122.58,122.55,60.6075684]
[1742306786858,0.063,122.58,122.56,0.14216157]
[1742306787064,41.7365964,122.58,122.55,0.28432314]
[1742306787663,41.6735964,122.57,122.55,0.28432314]
[1742306787863,41.7365964,122.58,122.55,0.28432314]
[1742306788074,0.063,122.58,122.55,0.28432314]
[1742306788376,41.7365964,122.58,122.55,0.28432314]
[1742306788553,0.063,122.58,122.55,0.28432314]
[1742306788875,0.063,122.58,122.55,41.6735964]
[1742306789273,0.063,122.58,122.56,19.07613357]
[1742306789569,0.063,122.58,122.57,76.75072997]
[1742306789774,41.6735964,122.64,122.58,19.07613357]
[1742306789946,41.6735964,122.64,122.61,19.07613357]
[1742306790152,41.6735964,122.64,122.61,0.42648471]
[1742306790553,41.6735964,122.62,122.58,18.64964886]
[1742306790767,41.6735964,122.61,122.58,18.64964886]
[1742306791067,81.8,122.63,122.59,0.42648471]
[1742306791273,41.6735964,122.62,122.59,0.42648471]
[1742306791869,81.8,122.63,122.59,0.42648471]
[1742306792075,83.4034,122.68,122.62,0.42648471]
[1742306792260,41.6735964,122.65,122.62,0.42648471]
[1742306793373,81.8,122.67,122.62,42.10008111]
[1742306793575,41.6735964,122.66,122.62,0.42648471]
[1742306793970,41.6735964,122.65,122.62,0.42648471]
[1742306794573,0.063,122.63,122.62,0.42648471]
[1742306796781,0.01365522,122.63,122.62,0.42648471]
[1742306798783,0.01365522,122.63,122.62,42.10008111]
[1742306798972,0.01365522,122.63,122.62,68.65402997]
[1742306799282,0.063,122.7,122.63,18.64964886]
[1742306799582,0.063,122.7,122.69,0.28432314]
[1742306799782,0.063,122.7,122.69,70.4790684]
[1742306799986,0.063,122.7,122.69,70.62122997]
[1742306800559,0.063,122.7,122.69,28.94763357]
[1742306800764,0.063,122.7,122.69,8.22]
[1742306801066,0.063,122.7,122.69,8.64648471]
[1742306801268,0.063,122.7,122.69,0.42648471]
[1742306801874,41.7365964,122.7,122.66,8.22]
[1742306802078,41.6735964,122.69,122.66,8.22]
[1742306802281,41.6735964,122.68,122.66,0.42648471]
[1742306802487,41.6735964,122.67,122.65,6.54106157]
[1742306802885,41.6735964,122.68,122.64,8.22]
[1742306803086,41.6735964,122.68,122.65,0.14216157]
[1742306803263,41.6735964,122.69,122.65,19.07613357]
[1742306803866,41.6735964,122.68,122.65,19.07613357]
[1742306804184,41.6735964,122.68,122.65,0.42648471]
[1742306804570,41.6735964,122.68,122.65,0.14216157]
[1742306804966,41.6735964,122.68,122.65,0.42648471]
[1742306805496,41.6735964,122.67,122.64,8.22]
[1742306805687,41.6735964,122.65,122.63,0.14216157]
[1742306805887,41.6735964,122.64,122.62,0.14216157]
[1742306806073,41.6735964,122.65,122.62,0.14216157]
[1742306806272,41.6735964,122.66,122.62,0.14216157]
[1742306806470,81.8,122.68,122.64,60.74972997]
[1742306806471,0.063,122.68,122.64,60.74972997]
[1742306806664,20.063,122.68,122.66,0.42648471]
[1742306806972,0.063,122.68,122.66,0.42648471]
[1742306807278,0.063,122.68,122.66,60.74972997]
[1742306807478,0.063,122.68,122.66,25.44293357]
[1742306808084,0.063,122.68,122.66,67.11652997]
[1742306808483,0.063,122.68,122.67,42.10008111]
[1742306809396,0.063,122.68,122.67,0.42648471]
[1742306809586,0.063,122.68,122.67,19.07613357]
[1742306809794,0.063,122.68,122.67,60.74972997]
[1742306810007,0.063,122.68,122.67,19.07613357]
[1742306810791,0.063,122.68,122.67,60.74972997]
[1742306811767,0.063,122.7,122.68,19.07613357]
[1742306812082,0.063,122.7,122.69,110.62332637]
[1742306812291,0.063,122.71,122.7,102.42332637]
[1742306812477,0.063,122.72,122.7,240.52332637]
[1742306812675,0.063,122.72,122.71,62.29972997]
[1742306813688,0.03,122.74,122.72,19.07613357]
[1742306813892,0.03,122.74,122.73,68.94972997]
[1742306816208,0.063,122.76,122.74,19.07613357]
[1742306816382,0.063,122.76,122.74,60.74972997]
[1742306816590,0.063,122.76,122.74,103.64475623]
[1742306816785,0.063,122.76,122.75,102.42332637]
[1742306817013,0.063,122.76,122.75,240.52332637]
[1742306817194,0.063,122.76,122.75,198.84972997]
[1742306818289,0.063,122.76,122.75,510.84972997]